[Event "African Games Rapid Open 2019"]
[Site "Casablanca"]
[Date "2019.08.26"]
[Round "5.2"]
[White "Hamdouchi, Hicham"]
[Black "Wanyama, Harold"]
[Result "0-1"]
[ECO "C78"]
[WhiteElo "2562"]
[BlackElo "2293"]
[Annotator "ChessBase"]
[PlyCount "152"]
[EventDate "2019.08.26"]
[EventType "team-tourn"]
[EventCountry "MAR"]
[SourceTitle "playchess.com"]
[Source "ChessBase"]
[SourceQuality "1"]
[TimeControl "900+10"]

1. e4 {[%emt 0:00:00]} e5 {[%emt 0:00:01]} 2. Nf3 {[%emt 0:00:00]} Nc6 {[%emt 0:00:01]} 3. Bb5 {[%emt 0:00:00]} a6 {[%emt 0:00:01]} 4. Ba4 {[%emt 0:00:00]} Nf6 {[%emt 0:00:04]} 5. O-O {[%emt 0:00:00]} b5 {[%emt 0:00:14]} 6. Bb3 {[%emt 0:00:00]} Bc5 {[%emt 0:00:05]} 7. a4 {[%emt 0:00:27]} Rb8 {[%emt 0:00:05]} 8. c3 {[%emt 0:00:06]} d6 {[%emt 0:00:04]} 9. d4 {[%emt 0:00:02]} Bb6 {[%emt 0:00:07]} 10. a5 {[%emt 0:00:15]} Ba7 {[%emt 0:01:14]} 11. h3 {[%emt 0:00:48]} O-O {[%emt 0:00:08]} 12. Be3 {[%emt 0:00:02]} Qe7 {[%emt 0:00:44]} 13. Nbd2 {[%emt 0:00:43]} Bb7 {[%emt 0:00:56]} 14. Re1 {[%emt 0:00:38]} exd4 {[%emt 0:00:22]} 15. cxd4 {[%emt 0:00:02]} Nb4 {[%emt 0:00:03]} 16. d5 {[%emt 0:00:51]} Bxe3 {[%emt 0:00:23]} 17. Rxe3 {[%emt 0:00:02]} c5 {[%emt 0:00:15]} 18. Nf1 {[%emt 0:01:15]} Nd7 {[%emt 0:02:34]} 19. Ng3 {[%emt 0:00:46]} g6 {[%emt 0:00:02]} 20. Qd2 {[%emt 0:00:14]} Rbe8 {[%emt 0:00:17]} 21. Re2 {[%emt 0:03:04]} Qf6 {[%emt 0:00:06]} 22. Nh2 {[%emt 0:00:28]} h5 {[%emt 0:00:25]} 23. Nf3 {[%emt 0:00:29]} Re7 {[%emt 0:00:35]} 24. Re3 {[%emt 0:01:55]} Rfe8 {[%emt 0:00:12]} 25. Rae1 {[%emt 0:00:29]} Bc8 {[%emt 0:00:39]} 26. Qc3 {[%emt 0:00:18]} Ne5 {[%emt 0:01:25]} 27. Kh1 {[%emt 0:00:38]} h4 {[%emt 0:00:41]} 28. Nf1 {[%emt 0:00:07]} Kg7 {[%emt 0:00:06]} 29. N1d2 {[%emt 0:00:22]} Nbd3 {[%emt 0:01:53]} 30. Rxd3 {[%emt 0:00:40]} Nxd3 {[%emt 0:00:03]} 31. Qxd3 {[%emt 0:00:02]} c4 {[%emt 0:00:03]} 32. Bxc4 {[%emt 0:00:44]} bxc4 {[%emt 0:00:09]} 33. Nxc4 {[%emt 0:00:01]} Bd7 {[%emt 0:00:12]} 34. Kg1 {[%emt 0:00:29]} Bb5 {[%emt 0:00:20]} 35. Nfd2 {[%emt 0:00:15]} g5 {[%emt 0:00:32]} 36. f3 {[%emt 0:00:01]} Kg8 {[%emt 0:00:16]} 37. b3 {[%emt 0:00:25]} Qf4 {[%emt 0:00:12]} 38. Qe3 {[%emt 0:00:22]} Qxe3+ {[%emt 0:00:43]} 39. Nxe3 {[%emt 0:00:33]} Rc7 {[%emt 0:00:22]} 40. Ndc4 {[%emt 0:00:18]} Rd8 {[%emt 0:00:06]} 41. Kf2 {[%emt 0:00:17]} Kh7 {[%emt 0:00:02]} 42. Ke2 {[%emt 0:00:14]} Bxc4+ 43. Nxc4 {[%emt 0:00:02]} Rb8 {[%emt 0:00:21]} 44. Nxd6 {[%emt 0:00:55]} Rxb3 {[%emt 0:00:32]} 45. Rd1 {[%emt 0:00:29]} Ra3 {[%emt 0:00:07]} 46. Rd2 {[%emt 0:00:10]} Rxa5 {[%emt 0:00:03]} 47. Ne8 {[%emt 0:00:12]} Rc8 {[%emt 0:00:37]} 48. Nf6+ {[%emt 0:00:22]} Kg6 {[%emt 0:00:09]} 49. Ng4 {[%emt 0:00:33]} f6 {[%emt 0:00:08]} 50. Ne3 {[%emt 0:00:07]} Rb5 {[%emt 0:00:10]} 51. Nf5 {[%emt 0:00:20]} Rd8 {[%emt 0:00:28]} 52. Rc2 {[%emt 0:00:05]} Rd7 {[%emt 0:00:20]} 53. Nd4 {[%emt 0:00:26]} Rb6 {[%emt 0:00:16]} 54. Nc6 {[%emt 0:01:05]} Kg7 {[%emt 0:00:23]} 55. Kd3 {[%emt 0:00:06]} Rdb7 {[%emt 0:00:05]} 56. Kd4 {[%emt 0:00:52]} Rb5 {[%emt 0:00:45]} 57. Nd8 {[%emt 0:00:12]} Rd7 {[%emt 0:00:19]} 58. Ne6+ {[%emt 0:00:04]} Kf7 {[%emt 0:00:01]} 59. Nc5 {[%emt 0:00:10]} Rd6 {[%emt 0:01:54]} 60. Kc4 {[%emt 0:00:17]} Rb1 {[%emt 0:00:13]} 61. Ra2 {[%emt 0:00:03]} Rdb6 {[%emt 0:00:15]} 62. Nxa6 {[%emt 0:00:05]} R1b2 {[%emt 0:00:09]} 63. Ra3 {[%emt 0:00:14]} Rxg2 {[%emt 0:00:02]} 64. Nc5 {[%emt 0:00:05]} Rc2+ {[%emt 0:00:10]} 65. Rc3 {[%emt 0:00:09]} Rxc3+ {[%emt 0:00:07]} 66. Kxc3 {[%emt 0:00:01]} Ke7 {[%emt 0:00:07]} 67. Nd3 {[%emt 0:00:07]} Kd6 {[%emt 0:00:05]} 68. Kd4 {[%emt 0:00:03]} Ra6 {[%emt 0:00:06]} 69. f4 {[%emt 0:00:10]} Ra4+ {[%emt 0:00:14]} 70. Ke3 {[%emt 0:00:02]} g4 {[%emt 0:00:23]} 71. hxg4 {[%emt 0:00:22]} h3 {[%emt 0:00:01]} 72. Nf2 {[%emt 0:00:08]} h2 {[%emt 0:00:04]} 73. Kf3 {[%emt 0:00:37]} Ra1 {[%emt 0:00:05]} 74. g5 {[%emt 0:00:14]} fxg5 {[%emt 0:00:04]} 75. fxg5 {[%emt 0:00:01]} Rg1 {[%emt 0:00:17]} 76. Kf4 {[%emt 0:00:17]} Rf1 {[%emt 0:00:07]} 0-1

[Event "African Games Rapid Open 2019"]
[Site "Casablanca"]
[Date "2019.08.26"]
[Round "5.4"]
[White "Aderito, Pedro"]
[Black "Ssegwanyi, Arthur"]
[Result "1-0"]
[ECO "D37"]
[WhiteElo "2301"]
[BlackElo "2335"]
[Annotator "NA"]
[PlyCount "146"]
[EventDate "2019.08.26"]
[EventType "team-tourn"]
[EventCountry "MAR"]
[SourceTitle "playchess.com"]
[Source "ChessBase"]
[SourceQuality "1"]
[TimeControl "900+10"]

1. d4 {[%emt 0:00:00]} d5 {[%emt 0:00:00]} 2. Nf3 {[%emt 0:00:00]} Nf6 {[%emt 0:00:00]} 3. c4 {[%emt 0:00:00]} e6 {[%emt 0:00:08]} 4. Nc3 {[%emt 0:00:08]} Be7 {[%emt 0:01:21]} 5. Bf4 {[%emt 0:01:15]} O-O {[%emt 0:00:23]} 6. e3 {[%emt 0:00:06]} b6 {[%emt 0:00:34]} 7. Rc1 {[%emt 0:00:26]} Bb7 {[%emt 0:01:40]} 8. cxd5 {[%emt 0:01:26]} Nxd5 {[%emt 0:00:22]} 9. Nxd5 {[%emt 0:02:32]} Qxd5 {[%emt 0:00:15]} 10. a3 {[%emt 0:00:16]} Bd6 {[%emt 0:00:43]} 11. Bxd6 {[%emt 0:02:44]} cxd6 {[%emt 0:00:22]} 12. Bc4 {[%emt 0:00:40]} Qa5+ {[%emt 0:01:16]} 13. Qd2 {[%emt 0:01:07]} Qf5 {[%emt 0:04:21]} 14. Be2 {[%emt 0:00:13]} Nc6 {[%emt 0:00:14]} 15. O-O {[%emt 0:00:06]} Rac8 {[%emt 0:00:10]} 16. Rc3 {[%emt 0:00:06]} e5 {[%emt 0:03:09]} 17. Rfc1 {[%emt 0:01:06]} exd4 {[%emt 0:01:15]} 18. exd4 {[%emt 0:02:03]} Ne7 {[%emt 0:00:42]} 19. Rc7 {[%emt 0:00:42]} Rxc7 {[%emt 0:00:37]} 20. Rxc7 {[%emt 0:00:01]} Bxf3 {[%emt 0:00:13]} 21. Bxf3 {[%emt 0:00:05]} Nd5 {[%emt 0:00:02]} 22. Bxd5 {[%emt 0:00:31]} Qxd5 {[%emt 0:00:05]} 23. Rxa7 {[%emt 0:00:07]} Rc8 {[%emt 0:00:04]} 24. h3 {[%emt 0:00:05]} h6 {[%emt 0:00:07]} 25. Re7 {[%emt 0:00:40]} Rc4 {[%emt 0:00:15]} 26. Re8+ {[%emt 0:00:22]} Kh7 {[%emt 0:00:08]} 27. Qd3+ {[%emt 0:00:01]} g6 {[%emt 0:00:12]} 28. Re4 {[%emt 0:01:09]} Kg7 {[%emt 0:00:14]} 29. b3 {[%emt 0:00:20]} Rc3 {[%emt 0:00:27]} 30. Qxc3 {[%emt 0:00:07]} Qxe4 {[%emt 0:00:02]} 31. d5+ {[%emt 0:00:53]} Kg8 {[%emt 0:00:01]} 32. Qc8+ {[%emt 0:00:31]} Kg7 {[%emt 0:00:04]} 33. Qc3+ {[%emt 0:00:08]} Kg8 {[%emt 0:00:04]} 34. Qc6 {[%emt 0:00:03]} Qe1+ {[%emt 0:00:15]} 35. Kh2 {[%emt 0:00:02]} Qe5+ {[%emt 0:00:02]} 36. g3 {[%emt 0:00:19]} Qd4 {[%emt 0:00:02]} 37. Kg2 {[%emt 0:00:07]} Qe4+ {[%emt 0:00:04]} 38. Kg1 {[%emt 0:00:07]} Qe1+ {[%emt 0:00:03]} 39. Kg2 {[%emt 0:00:02]} Qe4+ {[%emt 0:00:02]} 40. Kh2 {[%emt 0:00:07]} Qd4 {[%emt 0:00:04]} 41. Kg2 {[%emt 0:00:52]} Qe4+ {[%emt 0:00:04]} 42. Kf1 {[%emt 0:00:04]} Qd3+ {[%emt 0:00:11]} 43. Kg1 {[%emt 0:00:10]} Qb1+ {[%emt 0:00:30]} 44. Kh2 {[%emt 0:00:04]} Qxb3 {[%emt 0:00:06]} 45. Qxd6 {[%emt 0:00:03]} Qb2 {[%emt 0:00:08]} 46. Kg2 {[%emt 0:00:03]} Qd4 {[%emt 0:00:06]} 47. Qc6 {[%emt 0:00:14]} Qe4+ {[%emt 0:00:09]} 48. Kh2 {[%emt 0:00:01]} Qd4 {[%emt 0:00:24]} 49. Kg1 {[%emt 0:00:08]} Qe4 {[%emt 0:00:24]} 50. Qxb6 {[%emt 0:00:35]} Qxd5 {[%emt 0:00:04]} 51. Qb8+ {[%emt 0:00:05]} Kh7 {[%emt 0:00:02]} 52. Qf4 {[%emt 0:00:06]} Kg7 {[%emt 0:00:36]} 53. h4 {[%emt 0:00:07]} g5 {[%emt 0:00:17]} 54. hxg5 {[%emt 0:00:04]} hxg5 {[%emt 0:00:01]} 55. Qe3 {[%emt 0:00:08]} Kg6 {[%emt 0:00:29]} 56. Qc3 {[%emt 0:00:32]} f5 {[%emt 0:00:18]} 57. Qc2 {[%emt 0:00:12]} Kh6 {[%emt 0:00:15]} 58. a4 {[%emt 0:00:06]} f4 {[%emt 0:00:04]} 59. g4 {[%emt 0:00:16]} Qf3 {[%emt 0:00:09]} 60. Qf5 {[%emt 0:00:05]} Qd1+ {[%emt 0:00:18]} 61. Kh2 {[%emt 0:00:02]} Qd6 {[%emt 0:00:03]} 62. a5 {[%emt 0:00:05]} Qa6 {[%emt 0:00:11]} 63. Qf8+ {[%emt 0:00:11]} Kg6 {[%emt 0:00:09]} 64. Qg8+ {[%emt 0:00:04]} Kh6 {[%emt 0:00:04]} 65. Qh8+ {[%emt 0:00:02]} Kg6 {[%emt 0:00:01]} 66. Qh5+ {[%emt 0:00:02]} Kg7 {[%emt 0:00:07]} 67. Qxg5+ {[%emt 0:00:01]} Kh8 {[%emt 0:00:05]} 68. Qe5+ {[%emt 0:00:07]} Kg8 {[%emt 0:00:03]} 69. Qb8+ {[%emt 0:00:06]} Kh7 {[%emt 0:00:04]} 70. Qc7+ {[%emt 0:00:01]} Kg8 {[%emt 0:00:03]} 71. g5 {[%emt 0:00:40]} Qb5 {[%emt 0:00:51]} 72. Qd8+ {[%emt 0:00:29]} Kh7 {[%emt 0:00:21]} 73. Qf6 {[%emt 0:00:27]} Qd5 1-0

[Event "African Games Rapid Open 2019"]
[Site "Casablanca"]
[Date "2019.08.26"]
[Round "5.5"]
[White "Boudriga, Mohamed Ali"]
[Black "Silva, David"]
[Result "1-0"]
[ECO "C44"]
[WhiteElo "2325"]
[BlackElo "2239"]
[Annotator "NA"]
[PlyCount "123"]
[EventDate "2019.08.26"]
[EventType "team-tourn"]
[EventCountry "MAR"]
[SourceTitle "playchess.com"]
[Source "ChessBase"]
[SourceQuality "1"]
[TimeControl "900+10"]

1. e4 {[%emt 0:00:00]} e5 {[%emt 0:00:00]} 2. Nf3 {[%emt 0:00:00]} Nc6 {[%emt 0:00:00]} 3. d4 {[%emt 0:00:06]} exd4 {[%emt 0:00:00]} 4. Nxd4 {[%emt 0:00:02]} Nf6 {[%emt 0:00:48]} 5. Nxc6 {[%emt 0:00:06]} bxc6 {[%emt 0:00:02]} 6. Bd3 {[%emt 0:00:02]} d5 {[%emt 0:00:04]} 7. exd5 {[%emt 0:00:01]} cxd5 {[%emt 0:00:02]} 8. O-O {[%emt 0:00:03]} Be7 {[%emt 0:00:01]} 9. c4 {[%emt 0:00:01]} c6 {[%emt 0:00:13]} 10. cxd5 {[%emt 0:01:18]} cxd5 {[%emt 0:00:04]} 11. Nc3 {[%emt 0:00:01]} O-O {[%emt 0:00:06]} 12. Be3 {[%emt 0:05:44]} Be6 {[%emt 0:00:22]} 13. h3 {[%emt 0:00:27]} Nd7 {[%emt 0:00:55]} 14. Be2 {[%emt 0:00:17]} Ne5 {[%emt 0:00:39]} 15. b3 {[%emt 0:00:06]} Bf6 {[%emt 0:00:17]} 16. Bd4 {[%emt 0:00:40]} Nc6 {[%emt 0:06:31]} 17. Bxf6 {[%emt 0:00:11]} Qxf6 {[%emt 0:00:02]} 18. Nxd5 {[%emt 0:00:24]} Qg5 {[%emt 0:00:02]} 19. Bf3 {[%emt 0:02:40]} Ne5 {[%emt 0:00:19]} 20. Be4 {[%emt 0:02:19]} Qh4 {[%emt 0:02:52]} 21. f4 {[%emt 0:03:23]} Rad8 {[%emt 0:00:02]} 22. Qe1 {[%emt 0:00:02]} Qxe1 {[%emt 0:00:01]} 23. Raxe1 {[%emt 0:00:03]} Bxd5 {[%emt 0:00:01]} 24. fxe5 {[%emt 0:00:09]} Bxe4 {[%emt 0:00:03]} 25. Rxe4 {[%emt 0:00:01]} Rfe8 {[%emt 0:00:00]} 26. Rf2 {[%emt 0:00:14]} Re6 {[%emt 0:00:23]} 27. Ra4 {[%emt 0:00:07]} a6 {[%emt 0:00:11]} 28. Ra5 {[%emt 0:00:02]} h6 {[%emt 0:00:07]} 29. Rc2 {[%emt 0:00:36]} Rd1+ {[%emt 0:00:35]} 30. Kf2 {[%emt 0:00:19]} Rd3 {[%emt 0:00:30]} 31. Re2 {[%emt 0:00:23]} Kh7 {[%emt 0:00:10]} 32. Rc5 {[%emt 0:00:12]} Rd7 {[%emt 0:00:23]} 33. Rc4 {[%emt 0:00:09]} Rde7 {[%emt 0:00:04]} 34. Rc5 {[%emt 0:00:14]} f6 {[%emt 0:00:03]} 35. Kf3 {[%emt 0:00:11]} fxe5 {[%emt 0:00:16]} 36. Ke4 {[%emt 0:00:08]} Rd6 {[%emt 0:00:48]} 37. Rxe5 {[%emt 0:00:15]} Red7 {[%emt 0:00:01]} 38. Ke3 {[%emt 0:00:05]} Rf7 {[%emt 0:00:07]} 39. Rf2 {[%emt 0:00:02]} Rfd7 {[%emt 0:00:11]} 40. Rc2 {[%emt 0:00:11]} Rf7 {[%emt 0:00:12]} 41. Rf2 {[%emt 0:00:20]} Rfd7 {[%emt 0:00:03]} 42. Re2 {[%emt 0:00:09]} Rf7 {[%emt 0:00:06]} 43. Re4 {[%emt 0:00:01]} Rff6 {[%emt 0:00:08]} 44. Re7 {[%emt 0:00:07]} Rf5 {[%emt 0:00:10]} 45. Rf2 {[%emt 0:00:12]} Rd3+ 46. Kxd3 {[%emt 0:00:06]} Rxf2 {[%emt 0:00:24]} 47. Re2 {[%emt 0:00:02]} Rf6 {[%emt 0:00:00]} 48. Kc4 {[%emt 0:00:03]} Rf5 {[%emt 0:00:08]} 49. b4 {[%emt 0:00:07]} h5 {[%emt 0:00:05]} 50. a4 {[%emt 0:00:01]} h4 {[%emt 0:00:05]} 51. Re4 {[%emt 0:00:05]} g5 {[%emt 0:00:05]} 52. b5 {[%emt 0:00:01]} axb5+ 53. axb5 {[%emt 0:00:01]} Rf1 {[%emt 0:00:03]} 54. b6 {[%emt 0:00:03]} Rb1 {[%emt 0:00:02]} 55. Kc5 {[%emt 0:00:01]} Rc1+ {[%emt 0:00:03]} 56. Kd6 {[%emt 0:00:02]} Rb1 {[%emt 0:00:04]} 57. Kc7 {[%emt 0:00:01]} Rc1+ {[%emt 0:00:01]} 58. Kb8 {[%emt 0:00:04]} Rc2 {[%emt 0:00:01]} 59. Rg4 {[%emt 0:00:02]} Kg6 {[%emt 0:00:02]} 60. b7 {[%emt 0:00:02]} Rb2 {[%emt 0:00:02]} 61. Ra4 {[%emt 0:00:05]} Rxg2 {[%emt 0:00:07]} 62. Ka7 {[%emt 0:00:02]} 1-0

[Event "African Games Rapid Open 2019"]
[Site "Casablanca"]
[Date "2019.08.26"]
[Round "5.6"]
[White "Amba, Oyon Marius Claude"]
[Black "Zaibi, Amir"]
[Result "0-1"]
[ECO "B44"]
[WhiteElo "1911"]
[BlackElo "2367"]
[Annotator "NA"]
[PlyCount "74"]
[EventDate "2019.08.26"]
[EventType "team-tourn"]
[EventCountry "MAR"]
[SourceTitle "playchess.com"]
[Source "ChessBase"]
[SourceQuality "1"]
[TimeControl "900+10"]

1. e4 {[%emt 0:00:00]} c5 {[%emt 0:00:00]} 2. Nf3 {[%emt 0:00:00]} e6 {[%emt 0:00:00]} 3. d4 {[%emt 0:00:00]} cxd4 {[%emt 0:00:00]} 4. Nxd4 {[%emt 0:00:00]} Nc6 {[%emt 0:00:00]} 5. Nb3 {[%emt 0:01:20]} Nf6 {[%emt 0:00:32]} 6. Bd3 {[%emt 0:00:04]} d5 {[%emt 0:00:14]} 7. exd5 {[%emt 0:00:12]} exd5 {[%emt 0:00:02]} 8. O-O {[%emt 0:00:03]} h6 {[%emt 0:00:28]} 9. Nc3 {[%emt 0:00:12]} Be7 {[%emt 0:00:05]} 10. Bf4 {[%emt 0:00:13]} O-O {[%emt 0:00:04]} 11. Nb5 {[%emt 0:00:15]} Bg4 {[%emt 0:00:26]} 12. f3 {[%emt 0:00:13]} Bd7 {[%emt 0:00:15]} 13. Nd6 {[%emt 0:00:50]} Nh5 {[%emt 0:01:47]} 14. Qd2 {[%emt 0:00:01]} Nxf4 {[%emt 0:00:21]} 15. Qxf4 {[%emt 0:00:01]} Qc7 {[%emt 0:00:24]} 16. Rad1 {[%emt 0:05:28]} Bxd6 {[%emt 0:00:33]} 17. Qh4 {[%emt 0:00:04]} Rfe8 {[%emt 0:00:12]} 18. Kh1 {[%emt 0:00:14]} Qd8 {[%emt 0:00:39]} 19. Qf2 {[%emt 0:00:20]} Qf6 {[%emt 0:00:27]} 20. f4 {[%emt 0:00:23]} Bf5 {[%emt 0:00:34]} 21. Bb5 {[%emt 0:00:38]} a6 {[%emt 0:00:30]} 22. Bd3 {[%emt 0:00:22]} Rad8 {[%emt 0:01:19]} 23. Nc5 {[%emt 0:00:08]} Bxc5 {[%emt 0:00:08]} 24. Qxc5 {[%emt 0:00:01]} Bxd3 {[%emt 0:00:13]} 25. Rxd3 {[%emt 0:00:02]} Qxb2 {[%emt 0:00:34]} 26. f5 {[%emt 0:00:21]} Qb4 {[%emt 0:01:25]} 27. Qf2 {[%emt 0:00:14]} f6 {[%emt 0:00:54]} 28. Rg3 {[%emt 0:00:10]} Re4 {[%emt 0:00:27]} 29. h3 {[%emt 0:00:13]} Rde8 {[%emt 0:00:25]} 30. Qf3 {[%emt 0:00:14]} Qd6 {[%emt 0:00:50]} 31. Qc3 {[%emt 0:01:24]} Nd4 {[%emt 0:00:31]} 32. Rd3 {[%emt 0:02:06]} Nxf5 {[%emt 0:00:51]} 33. Qa5 {[%emt 0:02:03]} Ng3+ {[%emt 0:00:26]} 34. Rxg3 Qxg3 {[%emt 0:00:02]} 35. Qxd5+ {[%emt 0:00:12]} Kh8 {[%emt 0:00:05]} 36. Qa5 {[%emt 0:02:00]} Re1 {[%emt 0:00:11]} 37. Kg1 {[%emt 0:00:09]} Qe3+ {[%emt 0:00:10]} 0-1

[Event "African Games Rapid Open 2019"]
[Site "Casablanca"]
[Date "2019.08.26"]
[Round "5.7"]
[White "Traore, Bakary"]
[Black "Mwale, Joseph"]
[Result "0-1"]
[ECO "C89"]
[WhiteElo "2189"]
[BlackElo "2231"]
[Annotator "NA"]
[PlyCount "62"]
[EventDate "2019.08.26"]
[EventType "team-tourn"]
[EventCountry "MAR"]
[SourceTitle "playchess.com"]
[Source "ChessBase"]
[SourceQuality "1"]
[TimeControl "900+10"]

1. e4 {[%emt 0:00:00]} e5 {[%emt 0:00:00]} 2. Nf3 {[%emt 0:00:00]} Nc6 {[%emt 0:00:00]} 3. Bb5 {[%emt 0:00:00]} a6 {[%emt 0:00:00]} 4. Ba4 {[%emt 0:00:00]} Nf6 {[%emt 0:00:00]} 5. O-O {[%emt 0:00:03]} b5 {[%emt 0:00:00]} 6. Bb3 {[%emt 0:00:02]} Be7 {[%emt 0:00:09]} 7. Re1 {[%emt 0:00:06]} O-O {[%emt 0:00:02]} 8. c3 {[%emt 0:00:04]} d5 {[%emt 0:00:04]} 9. exd5 {[%emt 0:00:11]} Nxd5 {[%emt 0:00:02]} 10. Nxe5 {[%emt 0:00:03]} Nxe5 {[%emt 0:00:02]} 11. Rxe5 {[%emt 0:00:02]} Nf6 {[%emt 0:00:02]} 12. d4 {[%emt 0:00:29]} Bd6 {[%emt 0:00:02]} 13. Re1 {[%emt 0:01:01]} Ng4 {[%emt 0:00:05]} 14. h3 {[%emt 0:00:05]} Qh4 {[%emt 0:00:17]} 15. Qf3 {[%emt 0:00:22]} Nxf2 {[%emt 0:00:28]} 16. Rf1 {[%emt 0:00:33]} Nxh3+ {[%emt 0:01:06]} 17. gxh3 {[%emt 0:00:03]} Bxh3 {[%emt 0:00:03]} 18. Bf4 {[%emt 0:01:14]} Bxf1 {[%emt 0:00:34]} 19. Bxd6 {[%emt 0:00:06]} cxd6 {[%emt 0:00:12]} 20. Kxf1 {[%emt 0:00:05]} Rae8 {[%emt 0:01:07]} 21. Nd2 {[%emt 0:00:18]} Re6 {[%emt 0:00:41]} 22. Qg2 {[%emt 0:02:40]} Rg6 {[%emt 0:00:41]} 23. Nf3 {[%emt 0:00:06]} Qh5 {[%emt 0:00:12]} 24. Qf2 {[%emt 0:05:17]} Qh1+ {[%emt 0:00:23]} 25. Ng1 {[%emt 0:00:03]} Rf6 {[%emt 0:00:05]} 26. Qxf6 {[%emt 0:00:03]} gxf6 {[%emt 0:00:01]} 27. Re1 {[%emt 0:00:01]} Kh8 {[%emt 0:00:07]} 28. Kf2 {[%emt 0:00:16]} Qh2+ {[%emt 0:00:04]} 29. Kf3 {[%emt 0:00:07]} Rg8 {[%emt 0:00:10]} 30. Ne2 {[%emt 0:00:06]} Qh3+ {[%emt 0:00:16]} 31. Ke4 {[%emt 0:00:46]} Qh4+ {[%emt 0:00:03]} 0-1

[Event "African Games Rapid Open 2019"]
[Site "Casablanca"]
[Date "2019.08.26"]
[Round "5.8"]
[White "Arab, Adlane"]
[Black "Chumfwa, Stanley"]
[Result "1-0"]
[ECO "E71"]
[WhiteElo "2485"]
[BlackElo "2317"]
[Annotator "ChessBase"]
[PlyCount "61"]
[EventDate "2019.08.26"]
[EventType "team-tourn"]
[EventCountry "MAR"]
[SourceTitle "playchess.com"]
[Source "ChessBase"]
[SourceQuality "1"]
[TimeControl "900+10"]

1. d4 {[%emt 0:00:00]} Nf6 {[%emt 0:00:00]} 2. c4 {[%emt 0:00:00]} g6 {[%emt 0:00:00]} 3. Nc3 {[%emt 0:00:00]} Bg7 {[%emt 0:00:00]} 4. e4 {[%emt 0:00:00]} d6 {[%emt 0:00:00]} 5. h3 {[%emt 0:00:00]} O-O {[%emt 0:00:00]} 6. Bg5 {[%emt 0:00:02]} c5 {[%emt 0:01:03]} 7. d5 {[%emt 0:00:03]} b5 {[%emt 0:00:01]} 8. cxb5 {[%emt 0:00:05]} a6 {[%emt 0:00:02]} 9. a4 {[%emt 0:00:05]} Qa5 {[%emt 0:00:03]} 10. Bd2 {[%emt 0:00:07]} Nbd7 {[%emt 0:00:03]} 11. Nf3 {[%emt 0:00:05]} axb5 {[%emt 0:01:58]} 12. Bxb5 {[%emt 0:00:08]} Ba6 {[%emt 0:01:08]} 13. O-O {[%emt 0:00:09]} Bxb5 {[%emt 0:00:07]} 14. Nxb5 {[%emt 0:00:55]} Qb6 {[%emt 0:00:19]} 15. Qc2 {[%emt 0:00:07]} Ne8 {[%emt 0:00:12]} 16. Bc3 {[%emt 0:00:14]} f6 {[%emt 0:00:02]} 17. Nd2 {[%emt 0:00:07]} Nc7 {[%emt 0:00:24]} 18. Nc4 {[%emt 0:00:15]} Qb8 {[%emt 0:00:01]} 19. Nxc7 {[%emt 0:00:06]} Qxc7 {[%emt 0:00:01]} 20. b3 {[%emt 0:00:57]} Rfb8 {[%emt 0:00:19]} 21. Rab1 {[%emt 0:00:02]} Qa7 {[%emt 0:00:15]} 22. f4 {[%emt 0:00:16]} Qa6 {[%emt 0:00:28]} 23. Kh1 {[%emt 0:00:23]} Nb6 {[%emt 0:00:02]} 24. Na5 {[%emt 0:00:15]} c4 {[%emt 0:00:03]} 25. b4 {[%emt 0:00:23]} Nd7 {[%emt 0:00:07]} 26. b5 {[%emt 0:00:27]} Qb6 {[%emt 0:00:06]} 27. Nc6 {[%emt 0:00:05]} Re8 {[%emt 0:00:12]} 28. Bd4 {[%emt 0:00:08]} Nc5 {[%emt 0:00:04]} 29. a5 {[%emt 0:00:05]} Rxa5 {[%emt 0:00:07]} 30. Nxa5 {[%emt 0:00:02]} Qxa5 {[%emt 0:00:01]} 31. Bxc5 {[%emt 0:00:04]} 1-0